[Event "Titled Tuesday Blitz February 21 Early 2023"]
[White "Gamage, Wanshini Vidusama"]
[Black "Karttunen, Mika"]
[WhiteFideId "9953752"]
[BlackFideId "502081"]
[WhiteElo "1089"]
[BlackElo "2490"]
[Result "0-1"]
[Round "04"]
[TimeControl "180+2"]
[Date "2023.02.21"]
[WhiteClock "0:00:10"]
[BlackClock "0:00:32"]

1. e4 {[%clk 0:03:00]}  e5 {[%clk 0:02:58]} 2. Nf3 {[%clk 0:03:01]}  Nc6 {[%clk 0:02:58]} 3. Bb5 {[%clk 0:03:01]}  Nf6 {[%clk 0:02:57]} 4. d3 {[%clk 0:03:00]}  d6 {[%clk 0:02:54]} 5. O-O {[%clk 0:02:58]}  Bd7 {[%clk 0:02:54]} 6. c3 {[%clk 0:02:45]}  Be7 {[%clk 0:02:53]} 7. Re1 {[%clk 0:02:43]}  O-O {[%clk 0:02:52]} 8. d4 {[%clk 0:02:42]}  a6 {[%clk 0:02:41]} 9. Ba4 {[%clk 0:02:39]}  b5 {[%clk 0:02:36]} 10. Bc2 {[%clk 0:02:38]}  Bg4 {[%clk 0:02:34]} 11. d5 {[%clk 0:02:31]}  Na5 {[%clk 0:02:33]} 12. h3 {[%clk 0:02:26]}  Bd7 {[%clk 0:02:21]} 13. Nbd2 {[%clk 0:02:15]}  c6 {[%clk 0:02:21]} 14. dxc6 {[%clk 0:02:15]}  Bxc6 {[%clk 0:02:20]} 15. b4 {[%clk 0:02:08]}  Nc4 {[%clk 0:01:58]} 16. Nxc4 {[%clk 0:02:08]}  bxc4 {[%clk 0:01:58]} 17. Qe2 {[%clk 0:02:03]}  Rc8 {[%clk 0:01:58]} 18. Bg5 {[%clk 0:01:50]}  Bb7 {[%clk 0:01:51]} 19. Nd2 {[%clk 0:01:47]}  Qc7 {[%clk 0:01:49]} 20. Nf1 {[%clk 0:01:34]}  h6 {[%clk 0:01:46]} 21. Bxf6 {[%clk 0:01:33]}  Bxf6 {[%clk 0:01:46]} 22. Ne3 {[%clk 0:01:34]}  Bg5 {[%clk 0:01:46]} 23. Rad1 {[%clk 0:01:33]}  Bxe3 {[%clk 0:01:43]} 24. Qxe3 {[%clk 0:01:34]}  Rfe8 {[%clk 0:01:31]} 25. Rd2 {[%clk 0:01:22]}  Re6 {[%clk 0:01:31]} 26. f4 {[%clk 0:01:13]}  exf4 {[%clk 0:01:25]} 27. Qxf4 {[%clk 0:01:13]}  Rce8 {[%clk 0:01:20]} 28. Rd4 {[%clk 0:00:37]}  Qb6 {[%clk 0:00:54]} 29. Kh2 {[%clk 0:00:37]}  d5 {[%clk 0:00:47]} 30. e5 {[%clk 0:00:33]}  Qc7 {[%clk 0:00:47]} 31. Qf5 {[%clk 0:00:20]}  g6 {[%clk 0:00:46]} 32. Qf4 {[%clk 0:00:14]}  Rxe5 {[%clk 0:00:46]} 33. Rxe5 {[%clk 0:00:14]}  Qxe5 {[%clk 0:00:45]} 34. Qxe5 {[%clk 0:00:12]}  Rxe5 {[%clk 0:00:46]} 35. Kg3 {[%clk 0:00:13]}  Kg7 {[%clk 0:00:45]} 36. Kf3 {[%clk 0:00:12]}  Kf6 {[%clk 0:00:45]} 37. a4 {[%clk 0:00:12]}  Ke6 {[%clk 0:00:43]} 38. Rf4 {[%clk 0:00:11]}  f5 {[%clk 0:00:42]} 39. Rd4 {[%clk 0:00:11]}  h5 {[%clk 0:00:40]} 40. g3 {[%clk 0:00:11]}  Re1 {[%clk 0:00:38]} 41. Rd2 {[%clk 0:00:10]}  Ra1 {[%clk 0:00:36]} 42. a5 {[%clk 0:00:10]}  Ra3 {[%clk 0:00:35]} 43. Re2+ {[%clk 0:00:09]}  Kd7 {[%clk 0:00:34]} 44. Re3 {[%clk 0:00:10]}  d4+ {[%clk 0:00:32]} 0-1


[Site "https://www.chess.com"]

[Event "Titled Tuesday Blitz February 21 Early 2023"]
[White "Ciuffoletti, Paolo"]
[Black "Ordekalog"]
[WhiteFideId "807630"]
[WhiteElo "2106"]
[BlackElo "2560"]
[Result "0-1"]
[Round "04"]
[TimeControl "180+2"]
[Date "2023.02.21"]
[WhiteClock "0:00:02"]
[BlackClock "0:01:16"]

1. e4 {[%clk 0:03:00]}  d5 {[%clk 0:02:59]} 2. exd5 {[%clk 0:03:00]}  Qxd5 {[%clk 0:02:59]} 3. Nc3 {[%clk 0:03:00]}  Qa5 {[%clk 0:03:00]} 4. d4 {[%clk 0:03:00]}  Nf6 {[%clk 0:03:00]} 5. Nf3 {[%clk 0:03:00]}  Bg4 {[%clk 0:03:00]} 6. Bc4 {[%clk 0:02:41]}  Nc6 {[%clk 0:02:59]} 7. Bb5 {[%clk 0:02:07]}  O-O-O {[%clk 0:02:55]} 8. Bxc6 {[%clk 0:02:06]}  bxc6 {[%clk 0:02:56]} 9. O-O {[%clk 0:02:05]}  e5 {[%clk 0:02:56]} 10. Bd2 {[%clk 0:01:35]}  exd4 {[%clk 0:02:35]} 11. Ne2 {[%clk 0:01:13]}  Qh5 {[%clk 0:02:15]} 12. Ng3 {[%clk 0:00:58]}  Qd5 {[%clk 0:02:14]} 13. Qe2 {[%clk 0:00:46]}  Bxf3 {[%clk 0:02:01]} 14. gxf3 {[%clk 0:00:43]}  Qb5 {[%clk 0:01:51]} 15. c4 {[%clk 0:00:31]}  dxc3 {[%clk 0:01:49]} 16. Qxb5 {[%clk 0:00:29]}  cxb5 {[%clk 0:01:49]} 17. Bxc3 {[%clk 0:00:27]}  Nd5 {[%clk 0:01:49]} 18. Rac1 {[%clk 0:00:23]}  Kb7 {[%clk 0:01:40]} 19. Ne4 {[%clk 0:00:22]}  Nf4 {[%clk 0:01:31]} 20. Rc2 {[%clk 0:00:15]}  Be7 {[%clk 0:01:22]} 21. Be5 {[%clk 0:00:11]}  Ne6 {[%clk 0:01:21]} 22. Rfc1 {[%clk 0:00:10]}  Rd7 {[%clk 0:01:20]} 23. Bg3 {[%clk 0:00:05]}  Rhd8 {[%clk 0:01:17]} 24. a3 {[%clk 0:00:04]}  a6 {[%clk 0:01:16]} 25. Kg2 {[%clk 0:00:04]}  f5 {[%clk 0:01:16]} 26. Nc3 {[%clk 0:00:02]}  f4 {[%clk 0:01:16]} 0-1


[Site "https://www.chess.com"]

[Event "Titled Tuesday Blitz February 21 Early 2023"]
[White "Mendez Machado, Andre"]
[Black "Bews, Steven"]
[WhiteFideId "6603793"]
[BlackFideId "2400529"]
[WhiteElo "1974"]
[BlackElo "2295"]
[Result "0-1"]
[Round "04"]
[TimeControl "180+2"]
[Date "2023.02.21"]
[WhiteClock "0:00:20"]
[BlackClock "0:00:31"]

1. e4 {[%clk 0:03:00]}  e5 {[%clk 0:03:00]} 2. Nf3 {[%clk 0:03:00]}  Nf6 {[%clk 0:03:00]} 3. d4 {[%clk 0:02:58]}  Nxe4 {[%clk 0:02:59]} 4. Bd3 {[%clk 0:02:57]}  d5 {[%clk 0:03:00]} 5. Nxe5 {[%clk 0:02:56]}  Nd7 {[%clk 0:03:01]} 6. Nxf7 {[%clk 0:02:51]}  Qf6 {[%clk 0:02:32]} 7. Bxe4 {[%clk 0:02:38]}  Qxf7 {[%clk 0:02:32]} 8. Bf3 {[%clk 0:02:12]}  Bd6 {[%clk 0:02:23]} 9. O-O {[%clk 0:02:07]}  O-O {[%clk 0:02:23]} 10. Nc3 {[%clk 0:02:07]}  Nf6 {[%clk 0:02:23]} 11. Bg5 {[%clk 0:01:59]}  c6 {[%clk 0:02:23]} 12. Bxf6 {[%clk 0:01:53]}  Qxf6 {[%clk 0:02:23]} 13. Ne2 {[%clk 0:01:50]}  Bf5 {[%clk 0:01:38]} 14. Ng3 {[%clk 0:01:46]}  Bg6 {[%clk 0:01:36]} 15. c3 {[%clk 0:01:40]}  Qh4 {[%clk 0:01:22]} 16. Re1 {[%clk 0:01:24]}  Rae8 {[%clk 0:01:20]} 17. Rxe8 {[%clk 0:01:21]}  Rxe8 {[%clk 0:01:20]} 18. Qb3 {[%clk 0:01:13]}  Qe7 {[%clk 0:01:20]} 19. a4 {[%clk 0:00:47]}  h5 {[%clk 0:01:14]} 20. h3 {[%clk 0:00:30]}  h4 {[%clk 0:01:08]} 21. Nf1 {[%clk 0:00:30]}  Kh7 {[%clk 0:01:03]} 22. Ne3 {[%clk 0:00:18]}  Qf7 {[%clk 0:00:53]} 23. Nf1 {[%clk 0:00:15]}  b6 {[%clk 0:00:49]} 24. a5 {[%clk 0:00:15]}  b5 {[%clk 0:00:49]} 25. Qd1 {[%clk 0:00:14]}  Qf4 {[%clk 0:00:46]} 26. Qd2 {[%clk 0:00:13]}  Kh6 {[%clk 0:00:38]} 27. Qxf4+ {[%clk 0:00:11]}  Bxf4 {[%clk 0:00:38]} 28. Rd1 {[%clk 0:00:09]}  Bh5 {[%clk 0:00:34]} 29. Bxh5 {[%clk 0:00:08]}  Kxh5 {[%clk 0:00:35]} 30. Nh2 {[%clk 0:00:09]}  Re2 {[%clk 0:00:34]} 31. Rb1 {[%clk 0:00:09]}  Rc2 {[%clk 0:00:33]} 32. Nf3 {[%clk 0:00:08]}  Rc1+ {[%clk 0:00:29]} 33. Rxc1 {[%clk 0:00:08]}  Bxc1 {[%clk 0:00:30]} 34. b3 {[%clk 0:00:07]}  Bb2 {[%clk 0:00:23]} 35. c4 {[%clk 0:00:08]}  dxc4 {[%clk 0:00:23]} 36. bxc4 {[%clk 0:00:08]}  bxc4 {[%clk 0:00:24]} 37. Nd2 {[%clk 0:00:07]}  c3 {[%clk 0:00:23]} 38. Nb3 {[%clk 0:00:07]}  c2 {[%clk 0:00:24]} 39. Kf1 {[%clk 0:00:08]}  c1=Q+ {[%clk 0:00:24]} 40. Nxc1 {[%clk 0:00:09]}  Bxc1 {[%clk 0:00:25]} 41. Ke2 {[%clk 0:00:09]}  Ba3 {[%clk 0:00:21]} 42. Kd3 {[%clk 0:00:10]}  a6 {[%clk 0:00:20]} 43. Ke4 {[%clk 0:00:10]}  Bb4 {[%clk 0:00:20]} 44. d5 {[%clk 0:00:10]}  cxd5+ {[%clk 0:00:20]} 45. Kxd5 {[%clk 0:00:11]}  Bxa5 {[%clk 0:00:21]} 46. Kc6 {[%clk 0:00:11]}  Be1 {[%clk 0:00:21]} 47. Kb6 {[%clk 0:00:11]}  Bxf2+ {[%clk 0:00:21]} 48. Kxa6 {[%clk 0:00:12]}  Kg5 {[%clk 0:00:22]} 49. Kb5 {[%clk 0:00:13]}  Kf4 {[%clk 0:00:23]} 50. Kc4 {[%clk 0:00:13]}  Kg3 {[%clk 0:00:23]} 51. Kd3 {[%clk 0:00:14]}  Kxg2 {[%clk 0:00:24]} 52. Ke2 {[%clk 0:00:15]}  Bg3 {[%clk 0:00:25]} 53. Ke3 {[%clk 0:00:15]}  Kxh3 {[%clk 0:00:26]} 54. Ke2 {[%clk 0:00:15]}  g5 {[%clk 0:00:27]} 55. Kf1 {[%clk 0:00:16]}  g4 {[%clk 0:00:28]} 56. Kg1 {[%clk 0:00:17]}  Bf4 {[%clk 0:00:28]} 57. Kh1 {[%clk 0:00:18]}  g3 {[%clk 0:00:29]} 58. Kg1 {[%clk 0:00:19]}  Be3+ {[%clk 0:00:30]} 59. Kh1 {[%clk 0:00:20]}  g2# {[%clk 0:00:31]} 0-1


[Site "https://www.chess.com"]

[Event "Titled Tuesday Blitz February 21 Early 2023"]
[White "Lehtosaari, Mauri"]
[Black "Delorme, Alban"]
[WhiteFideId "501999"]
[BlackFideId "623636"]
[WhiteElo "2176"]
[BlackElo "2298"]
[Result "1-0"]
[Round "04"]
[TimeControl "180+2"]
[Date "2023.02.21"]
[WhiteClock "0:00:08"]
[BlackClock "0:00:03"]

1. d4 {[%clk 0:03:00]}  Nf6 {[%clk 0:02:59]} 2. Nf3 {[%clk 0:03:01]}  g6 {[%clk 0:02:56]} 3. Bg5 {[%clk 0:03:01]}  Bg7 {[%clk 0:02:56]} 4. c3 {[%clk 0:03:01]}  O-O {[%clk 0:02:55]} 5. Nbd2 {[%clk 0:03:00]}  d6 {[%clk 0:02:54]} 6. e4 {[%clk 0:02:58]}  c5 {[%clk 0:02:52]} 7. dxc5 {[%clk 0:02:57]}  dxc5 {[%clk 0:02:52]} 8. Bc4 {[%clk 0:02:58]}  Nc6 {[%clk 0:02:46]} 9. O-O {[%clk 0:02:52]}  Qc7 {[%clk 0:02:46]} 10. Qe2 {[%clk 0:02:50]}  Bg4 {[%clk 0:02:43]} 11. Qe3 {[%clk 0:02:49]}  b6 {[%clk 0:02:36]} 12. e5 {[%clk 0:02:16]}  Bxf3 {[%clk 0:02:14]} 13. exf6 {[%clk 0:01:57]}  exf6 {[%clk 0:02:12]} 14. Bf4 {[%clk 0:01:57]}  Ne5 {[%clk 0:01:53]} 15. Bxe5 {[%clk 0:01:42]}  fxe5 {[%clk 0:01:48]} 16. Nxf3 {[%clk 0:01:41]}  Rad8 {[%clk 0:01:42]} 17. Rad1 {[%clk 0:01:38]}  h6 {[%clk 0:01:34]} 18. g3 {[%clk 0:01:30]}  Kh7 {[%clk 0:01:28]} 19. Qe2 {[%clk 0:01:16]}  f5 {[%clk 0:01:23]} 20. Rxd8 {[%clk 0:01:16]}  Rxd8 {[%clk 0:01:21]} 21. Rd1 {[%clk 0:01:16]}  Re8 {[%clk 0:01:21]} 22. Nh4 {[%clk 0:01:13]}  e4 {[%clk 0:01:13]} 23. Qd2 {[%clk 0:01:06]}  Rf8 {[%clk 0:00:54]} 24. Qd7 {[%clk 0:01:00]}  Qe5 {[%clk 0:00:50]} 25. Qe6 {[%clk 0:00:52]}  Qxe6 {[%clk 0:00:42]} 26. Bxe6 {[%clk 0:00:53]}  h5 {[%clk 0:00:31]} 27. f4 {[%clk 0:00:47]}  Rf6 {[%clk 0:00:28]} 28. Bc4 {[%clk 0:00:47]}  Rc6 {[%clk 0:00:22]} 29. Rd7 {[%clk 0:00:46]}  a5 {[%clk 0:00:20]} 30. a4 {[%clk 0:00:45]}  Kh6 {[%clk 0:00:20]} 31. Ng2 {[%clk 0:00:44]}  Bf6 {[%clk 0:00:16]} 32. Kf2 {[%clk 0:00:37]}  g5 {[%clk 0:00:12]} 33. Ke2 {[%clk 0:00:35]}  h4 {[%clk 0:00:12]} 34. fxg5+ {[%clk 0:00:34]}  Bxg5 {[%clk 0:00:11]} 35. Ne3 {[%clk 0:00:19]}  Kg6 {[%clk 0:00:08]} 36. Bf7+ {[%clk 0:00:17]}  Kf6 {[%clk 0:00:07]} 37. Bh5 {[%clk 0:00:17]}  hxg3 {[%clk 0:00:06]} 38. hxg3 {[%clk 0:00:17]}  f4 {[%clk 0:00:02]} 39. gxf4 {[%clk 0:00:16]}  Bxf4 {[%clk 0:00:02]} 40. Nd5+ {[%clk 0:00:16]}  Ke5 {[%clk 0:00:02]} 41. Nxf4 {[%clk 0:00:16]}  Kxf4 {[%clk 0:00:02]} 42. Rf7+ {[%clk 0:00:17]}  Ke5 {[%clk 0:00:03]} 43. Rf2 {[%clk 0:00:14]}  Rh6 {[%clk 0:00:03]} 44. Be8 {[%clk 0:00:13]}  Rh1 {[%clk 0:00:02]} 45. Bb5 {[%clk 0:00:11]}  Rb1 {[%clk 0:00:02]} 46. Ke3 {[%clk 0:00:10]}  Re1+ {[%clk 0:00:02]} 47. Kd2 {[%clk 0:00:10]}  Rh1 {[%clk 0:00:02]} 48. Kc2 {[%clk 0:00:10]}  Rh3 {[%clk 0:00:02]} 49. Re2 {[%clk 0:00:10]}  e3 {[%clk 0:00:01]} 50. Kd3 {[%clk 0:00:10]}  Kf4 {[%clk 0:00:02]} 51. Bc6 {[%clk 0:00:10]}  Rg3 {[%clk 0:00:02]} 52. b3 {[%clk 0:00:09]}  Rg1 {[%clk 0:00:02]} 53. Bb5 {[%clk 0:00:07]}  Rd1+ {[%clk 0:00:02]} 54. Kc4 {[%clk 0:00:07]}  Rd2 {[%clk 0:00:02]} 55. Re1 {[%clk 0:00:06]}  Kf3 {[%clk 0:00:02]} 56. b4 {[%clk 0:00:07]}  axb4 {[%clk 0:00:02]} 57. cxb4 {[%clk 0:00:07]}  cxb4 {[%clk 0:00:01]} 58. Kxb4 {[%clk 0:00:07]}  Kf2 {[%clk 0:00:02]} 59. Rh1 {[%clk 0:00:07]}  e2 {[%clk 0:00:02]} 60. Bxe2 {[%clk 0:00:07]}  Ke3 {[%clk 0:00:01]} 61. Bb5 {[%clk 0:00:06]}  Rb2+ {[%clk 0:00:01]} 62. Kc3 {[%clk 0:00:06]}  Ra2 {[%clk 0:00:02]} 63. Rh6 {[%clk 0:00:07]}  Ke4 {[%clk 0:00:02]} 64. Rxb6 {[%clk 0:00:06]}  Ra1 {[%clk 0:00:03]} 65. Kb2 {[%clk 0:00:06]}  Rh1 {[%clk 0:00:02]} 66. Rc6 {[%clk 0:00:07]}  Kd4 {[%clk 0:00:03]} 67. Kb3 {[%clk 0:00:07]}  Rh3+ {[%clk 0:00:03]} 68. Kb4 {[%clk 0:00:07]}  Rh1 {[%clk 0:00:03]} 69. Rc4+ {[%clk 0:00:08]}  Kd5 {[%clk 0:00:03]} 70. Rc2 {[%clk 0:00:08]}  Rh4+ {[%clk 0:00:02]} 71. Ka5 {[%clk 0:00:08]}  Rh8 {[%clk 0:00:03]} 72. Kb6 {[%clk 0:00:08]}  Rh6+ {[%clk 0:00:02]} 73. Kb7 {[%clk 0:00:08]}  Rh7+ {[%clk 0:00:03]} 74. Rc7 {[%clk 0:00:08]}  Rh3 {[%clk 0:00:03]} 75. a5 {[%clk 0:00:08]}  Kd6 {[%clk 0:00:04]} 76. Rc6+ {[%clk 0:00:07]}  Kd5 {[%clk 0:00:04]} 77. a6 {[%clk 0:00:08]}  Rb3 {[%clk 0:00:04]} 78. Kb6 {[%clk 0:00:09]}  Ra3 {[%clk 0:00:03]} 79. a7 {[%clk 0:00:09]}  Ra1 {[%clk 0:00:04]} 80. Rc8 {[%clk 0:00:09]}  Rg1 {[%clk 0:00:02]} 81. a8=Q+ {[%clk 0:00:09]}  Kd4 {[%clk 0:00:03]} 82. Qc6 {[%clk 0:00:09]}  Ke3 {[%clk 0:00:03]} 83. Qc5+ {[%clk 0:00:09]}  Kf4 {[%clk 0:00:02]} 84. Qxg1 {[%clk 0:00:10]}  Ke5 {[%clk 0:00:03]} 85. Qc5+ {[%clk 0:00:10]}  Ke6 {[%clk 0:00:03]} 86. Re8+ {[%clk 0:00:10]}  Kf7 {[%clk 0:00:03]} 87. Re7+ {[%clk 0:00:08]} 1-0


[Site "https://www.chess.com"]

[Event "Titled Tuesday Blitz February 21 Early 2023"]
[White "Babikov, Ivan"]
[Black "Kramnik, Vladimir"]
[WhiteFideId "4161106"]
[BlackFideId "4101588"]
[WhiteElo "2239"]
[BlackElo "2753"]
[Result "0-1"]
[Round "04"]
[TimeControl "180+2"]
[Date "2023.02.21"]
[WhiteClock "0:00:07"]
[BlackClock "0:00:36"]

1. Nf3 {[%clk 0:03:00]}  Nf6 {[%clk 0:02:58]} 2. g3 {[%clk 0:03:01]}  b6 {[%clk 0:02:57]} 3. Bg2 {[%clk 0:03:01]}  Bb7 {[%clk 0:02:56]} 4. O-O {[%clk 0:03:02]}  c5 {[%clk 0:02:56]} 5. d4 {[%clk 0:03:01]}  cxd4 {[%clk 0:02:55]} 6. Nxd4 {[%clk 0:03:02]}  Bxg2 {[%clk 0:02:53]} 7. Kxg2 {[%clk 0:03:02]}  Qc8 {[%clk 0:02:51]} 8. b3 {[%clk 0:02:59]}  g6 {[%clk 0:02:47]} 9. Bb2 {[%clk 0:02:58]}  Bg7 {[%clk 0:02:47]} 10. Nd2 {[%clk 0:02:58]}  O-O {[%clk 0:02:45]} 11. N2f3 {[%clk 0:02:57]}  Qb7 {[%clk 0:02:42]} 12. Kg1 {[%clk 0:02:56]}  b5 {[%clk 0:02:37]} 13. Qd3 {[%clk 0:02:35]}  a6 {[%clk 0:02:36]} 14. Rfe1 {[%clk 0:02:33]}  Nc6 {[%clk 0:02:35]} 15. e4 {[%clk 0:02:30]}  d6 {[%clk 0:02:31]} 16. Nxc6 {[%clk 0:02:29]}  Qxc6 {[%clk 0:02:31]} 17. e5 {[%clk 0:02:23]}  dxe5 {[%clk 0:02:29]} 18. Nxe5 {[%clk 0:02:22]}  Qc7 {[%clk 0:02:27]} 19. Rac1 {[%clk 0:02:11]}  Ng4 {[%clk 0:02:11]} 20. Nxg4 {[%clk 0:01:57]}  Bxb2 {[%clk 0:02:10]} 21. Rb1 {[%clk 0:01:57]}  Bg7 {[%clk 0:02:06]} 22. Rbc1 {[%clk 0:01:53]}  b4 {[%clk 0:01:59]} 23. Ne3 {[%clk 0:01:48]}  e6 {[%clk 0:01:57]} 24. Qc4 {[%clk 0:01:45]}  Qb7 {[%clk 0:01:55]} 25. Red1 {[%clk 0:01:41]}  Rac8 {[%clk 0:01:50]} 26. Qf4 {[%clk 0:01:29]}  Rc3 {[%clk 0:01:48]} 27. Nc4 {[%clk 0:01:26]}  Rf3 {[%clk 0:01:45]} 28. Qd6 {[%clk 0:01:18]}  h5 {[%clk 0:01:35]} 29. Qd7 {[%clk 0:01:16]}  Qa8 {[%clk 0:01:31]} 30. h4 {[%clk 0:01:02]}  Bc3 {[%clk 0:01:20]} 31. Qd6 {[%clk 0:00:34]}  Rf5 {[%clk 0:01:16]} 32. Qd3 {[%clk 0:00:24]}  Rd5 {[%clk 0:01:13]} 33. Qe2 {[%clk 0:00:22]}  Qc6 {[%clk 0:01:08]} 34. Rxd5 {[%clk 0:00:17]}  exd5 {[%clk 0:01:08]} 35. Ne3 {[%clk 0:00:17]}  Re8 {[%clk 0:01:06]} 36. Qd3 {[%clk 0:00:16]}  d4 {[%clk 0:01:02]} 37. Nc4 {[%clk 0:00:16]}  Re4 {[%clk 0:00:56]} 38. Na5 {[%clk 0:00:13]}  Qe6 {[%clk 0:00:55]} 39. Nc4 {[%clk 0:00:11]}  g5 {[%clk 0:00:52]} 40. hxg5 {[%clk 0:00:09]}  h4 {[%clk 0:00:52]} 41. Kg2 {[%clk 0:00:08]}  hxg3 {[%clk 0:00:50]} 42. Rh1 {[%clk 0:00:02]}  gxf2 {[%clk 0:00:47]} 43. Kxf2 {[%clk 0:00:02]}  Rf4+ {[%clk 0:00:43]} 44. Kg2 {[%clk 0:00:02]}  Qg4+ {[%clk 0:00:43]} 45. Qg3 {[%clk 0:00:02]}  Qe2+ {[%clk 0:00:43]} 46. Kh3 {[%clk 0:00:02]}  Rf3 {[%clk 0:00:43]} 47. Rg1 {[%clk 0:00:01]}  Rxg3+ {[%clk 0:00:42]} 48. Rxg3 {[%clk 0:00:01]}  Qxc2 {[%clk 0:00:42]} 49. g6 {[%clk 0:00:02]}  fxg6 {[%clk 0:00:41]} 50. Ne5 {[%clk 0:00:02]}  Kg7 {[%clk 0:00:39]} 51. Nxg6 {[%clk 0:00:01]}  Qf5+ {[%clk 0:00:38]} 52. Kh4 {[%clk 0:00:01]}  Qxg6 {[%clk 0:00:38]} 53. Rxg6+ {[%clk 0:00:01]}  Kxg6 {[%clk 0:00:39]} 54. Kg3 {[%clk 0:00:01]}  d3 {[%clk 0:00:39]} 55. Kf2 {[%clk 0:00:02]}  Kf5 {[%clk 0:00:39]} 56. Ke3 {[%clk 0:00:02]}  d2 {[%clk 0:00:39]} 57. Kd3 {[%clk 0:00:03]}  Kf4 {[%clk 0:00:39]} 58. Kc4 {[%clk 0:00:04]}  d1=Q {[%clk 0:00:38]} 59. a4 {[%clk 0:00:05]}  bxa3 {[%clk 0:00:37]} 60. b4 {[%clk 0:00:05]}  a2 {[%clk 0:00:37]} 61. b5 {[%clk 0:00:06]}  axb5+ {[%clk 0:00:36]} 62. Kc5 {[%clk 0:00:07]} 0-1


[Site "https://www.chess.com"]

[Event "Titled Tuesday Blitz February 21 Early 2023"]
[White "Andrews, Todd"]
[Black "Darini, Pouria"]
[WhiteFideId "2012456"]
[BlackFideId "12502200"]
[WhiteElo "2220"]
[BlackElo "2401"]
[Result "1-0"]
[Round "04"]
[TimeControl "180+2"]
[Date "2023.02.21"]
[WhiteClock "0:00:10"]
[BlackClock "0:01:14"]

1. e4 {[%clk 0:03:00]}  e5 {[%clk 0:02:56]} 2. Nf3 {[%clk 0:03:00]}  Nc6 {[%clk 0:02:57]} 3. d4 {[%clk 0:03:01]}  exd4 {[%clk 0:02:57]} 4. Nxd4 {[%clk 0:03:02]}  Nf6 {[%clk 0:02:57]} 5. Nxc6 {[%clk 0:03:01]}  bxc6 {[%clk 0:02:57]} 6. e5 {[%clk 0:03:02]}  Qe7 {[%clk 0:02:58]} 7. Qe2 {[%clk 0:03:01]}  Nd5 {[%clk 0:02:58]} 8. c4 {[%clk 0:03:01]}  Ba6 {[%clk 0:02:57]} 9. h4 {[%clk 0:03:01]}  Qc5 {[%clk 0:02:49]} 10. Qe4 {[%clk 0:02:25]}  Nb6 {[%clk 0:02:41]} 11. Nd2 {[%clk 0:02:24]}  O-O-O {[%clk 0:02:13]} 12. Nb3 {[%clk 0:01:48]}  Qb4+ {[%clk 0:02:13]} 13. Bd2 {[%clk 0:01:48]}  Qa4 {[%clk 0:02:13]} 14. Rh3 {[%clk 0:01:06]}  Bxc4 {[%clk 0:01:56]} 15. Bxc4 {[%clk 0:00:55]}  Qxc4 {[%clk 0:01:57]} 16. Qe3 {[%clk 0:00:34]}  Bb4 {[%clk 0:01:34]} 17. Rc1 {[%clk 0:00:33]}  Bxd2+ {[%clk 0:01:29]} 18. Qxd2 {[%clk 0:00:31]}  Qe4+ {[%clk 0:01:29]} 19. Kf1 {[%clk 0:00:23]}  Qxe5 {[%clk 0:01:21]} 20. Nc5 {[%clk 0:00:19]}  d6 {[%clk 0:01:20]} 21. Na6 {[%clk 0:00:14]}  Qb5+ {[%clk 0:01:19]} 22. Qe2 {[%clk 0:00:12]}  Qxe2+ {[%clk 0:01:19]} 23. Kxe2 {[%clk 0:00:13]}  Kb7 {[%clk 0:01:18]} 24. Ra3 {[%clk 0:00:12]}  Rhe8+ {[%clk 0:01:19]} 25. Kf1 {[%clk 0:00:12]}  c5 {[%clk 0:01:20]} 26. b4 {[%clk 0:00:11]}  cxb4 {[%clk 0:01:15]} 27. Rxc7+ {[%clk 0:00:10]}  Ka8 {[%clk 0:01:14]} 28. Nxb4 {[%clk 0:00:10]} 1-0


[Site "https://www.chess.com"]

[Event "Titled Tuesday Blitz February 21 Early 2023"]
[White "Sreyas Payyappat"]
[Black "Volkov, Maksim"]
[WhiteFideId "46674969"]
[BlackFideId "54123070"]
[WhiteElo "2076"]
[BlackElo "2258"]
[Result "0-1"]
[Round "04"]
[TimeControl "180+2"]
[Date "2023.02.21"]
[WhiteClock "0:00:54"]
[BlackClock "0:00:04"]

1. e4 {[%clk 0:03:00]}  c5 {[%clk 0:02:55]} 2. Nf3 {[%clk 0:03:00]}  d6 {[%clk 0:02:55]} 3. d4 {[%clk 0:02:59]}  cxd4 {[%clk 0:02:54]} 4. Nxd4 {[%clk 0:03:00]}  Nf6 {[%clk 0:02:49]} 5. Nc3 {[%clk 0:03:00]}  a6 {[%clk 0:02:49]} 6. h4 {[%clk 0:02:57]}  e5 {[%clk 0:02:44]} 7. Nb3 {[%clk 0:02:56]}  Be7 {[%clk 0:02:39]} 8. Bg5 {[%clk 0:02:55]}  Be6 {[%clk 0:02:37]} 9. Bxf6 {[%clk 0:02:52]}  Bxf6 {[%clk 0:02:37]} 10. g3 {[%clk 0:02:52]}  Nd7 {[%clk 0:02:36]} 11. Qd2 {[%clk 0:02:46]}  Be7 {[%clk 0:02:23]} 12. O-O-O {[%clk 0:02:44]}  Nf6 {[%clk 0:01:43]} 13. f4 {[%clk 0:02:37]}  exf4 {[%clk 0:01:30]} 14. gxf4 {[%clk 0:02:38]}  Bg4 {[%clk 0:01:27]} 15. Be2 {[%clk 0:02:34]}  h5 {[%clk 0:00:06]} 16. Bxg4 {[%clk 0:02:16]}  Nxg4 {[%clk 0:00:07]} 17. Nd5 {[%clk 0:02:10]}  O-O {[%clk 0:00:07]} 18. Nd4 {[%clk 0:02:05]}  Bf6 {[%clk 0:00:04]} 19. Nf5 {[%clk 0:02:03]}  g6 {[%clk 0:00:01]} 20. Nxf6+ {[%clk 0:02:00]}  Qxf6 {[%clk 0:00:02]} 21. Nxd6 {[%clk 0:01:59]}  Rfd8 {[%clk 0:00:02]} 22. e5 {[%clk 0:01:58]}  Qe6 {[%clk 0:00:02]} 23. Kb1 {[%clk 0:01:53]}  b5 {[%clk 0:00:03]} 24. Rde1 {[%clk 0:01:49]}  Rd7 {[%clk 0:00:02]} 25. Rhf1 {[%clk 0:01:49]}  Rad8 {[%clk 0:00:03]} 26. Qc3 {[%clk 0:01:40]}  Qe7 {[%clk 0:00:03]} 27. a3 {[%clk 0:01:25]}  Rc7 {[%clk 0:00:03]} 28. Qb3 {[%clk 0:01:23]}  Qxh4 {[%clk 0:00:02]} 29. e6 {[%clk 0:01:21]}  Rxd6 {[%clk 0:00:02]} 30. f5 {[%clk 0:01:10]}  Kg7 {[%clk 0:00:01]} 31. fxg6 {[%clk 0:01:01]}  fxg6 {[%clk 0:00:02]} 32. Rf7+ {[%clk 0:00:54]}  Rxf7 {[%clk 0:00:02]} 33. exf7 {[%clk 0:00:55]}  Qxe1+ {[%clk 0:00:02]} 34. Ka2 {[%clk 0:00:54]}  Qe6 {[%clk 0:00:03]} 35. Qxe6 {[%clk 0:00:54]}  Rxe6 {[%clk 0:00:04]} 0-1


[Site "https://www.chess.com"]

[Event "Titled Tuesday Blitz February 21 Early 2023"]
[White "Fernandez Garcia, Gumersindo"]
[Black "Hirneise, Jens"]
[WhiteFideId "24516740"]
[BlackFideId "24614734"]
[WhiteElo "2160"]
[BlackElo "2277"]
[Result "1-0"]
[Round "04"]
[TimeControl "180+2"]
[Date "2023.02.21"]
[WhiteClock "0:01:24"]
[BlackClock "0:01:31"]

1. e4 {[%clk 0:03:00]}  e5 {[%clk 0:02:55]} 2. Nf3 {[%clk 0:02:59]}  d6 {[%clk 0:02:54]} 3. d4 {[%clk 0:02:56]}  exd4 {[%clk 0:02:54]} 4. Nxd4 {[%clk 0:02:56]}  Nf6 {[%clk 0:02:53]} 5. Nc3 {[%clk 0:02:56]}  Be7 {[%clk 0:02:49]} 6. Bd3 {[%clk 0:02:51]}  c5 {[%clk 0:02:47]} 7. Nf3 {[%clk 0:02:49]}  Bg4 {[%clk 0:02:46]} 8. h3 {[%clk 0:02:49]}  Bxf3 {[%clk 0:02:43]} 9. Qxf3 {[%clk 0:02:46]}  Nc6 {[%clk 0:02:43]} 10. Bf4 {[%clk 0:02:44]}  O-O {[%clk 0:02:39]} 11. O-O {[%clk 0:02:43]}  Ne5 {[%clk 0:02:35]} 12. Bxe5 {[%clk 0:02:41]}  dxe5 {[%clk 0:02:35]} 13. Bc4 {[%clk 0:02:27]}  a6 {[%clk 0:02:29]} 14. Rfd1 {[%clk 0:02:25]}  Qc8 {[%clk 0:02:26]} 15. Nd5 {[%clk 0:02:23]}  Nxd5 {[%clk 0:02:25]} 16. Bxd5 {[%clk 0:02:24]}  Rb8 {[%clk 0:02:24]} 17. Qh5 {[%clk 0:02:18]}  Bf6 {[%clk 0:02:20]} 18. Rd3 {[%clk 0:02:17]}  g6 {[%clk 0:02:19]} 19. Qe2 {[%clk 0:02:15]}  Kg7 {[%clk 0:02:06]} 20. a4 {[%clk 0:02:02]}  b5 {[%clk 0:01:57]} 21. axb5 {[%clk 0:02:00]}  axb5 {[%clk 0:01:58]} 22. Ra7 {[%clk 0:01:59]}  Rb6 {[%clk 0:01:53]} 23. Rf3 {[%clk 0:01:49]}  Qb8 {[%clk 0:01:48]} 24. Rd7 {[%clk 0:01:24]}  Rd6 {[%clk 0:01:45]} 25. Rb7 {[%clk 0:01:24]}  Qe8 {[%clk 0:01:38]} 26. Qxb5 {[%clk 0:01:23]}  Qxb5 {[%clk 0:01:31]} 27. Rxb5 {[%clk 0:01:24]} 1-0


[Site "https://www.chess.com"]